[Event "POR-ch Women Rapid 2019"]
[Site "Portimao"]
[Date "2019.09.07"]
[Round "1.1"]
[White "Pipiras, Filipa Fortuna"]
[Black "Avelino, Camila Biscaya"]
[Result "1-0"]
[ECO "D70"]
[WhiteElo "1965"]
[BlackElo "1722"]
[Annotator "NA"]
[PlyCount "55"]
[EventDate "2019.09.08"]
[EventType "swiss"]
[EventCountry "POR"]
[SourceTitle "playchess.com"]
[Source "ChessBase"]
[SourceQuality "1"]
[TimeControl "900+5"]

1. d4 {[%emt 0:00:01]} Nf6 {[%emt 0:00:00]} 2. c4 {[%emt 0:00:02]} g6 {[%emt 0:00:00]} 3. Nf3 {[%emt 0:00:04]} Bg7 {[%emt 0:00:00]} 4. g3 {[%emt 0:00:11]} O-O {[%emt 0:00:02]} 5. Bg2 {[%emt 0:00:02]} d6 {[%emt 0:00:02]} 6. O-O {[%emt 0:00:03]} Nbd7 {[%emt 0:00:08]} 7. Qc2 {[%emt 0:00:18]} e5 {[%emt 0:00:16]} 8. Rd1 {[%emt 0:00:07]} Qe7 {[%emt 0:00:27]} 9. Nc3 {[%emt 0:00:09]} c6 {[%emt 0:00:03]} 10. e4 {[%emt 0:00:26]} Nb6 {[%emt 0:01:29]} 11. b3 {[%emt 0:00:43]} Bg4 {[%emt 0:00:22]} 12. dxe5 {[%emt 0:01:23]} dxe5 {[%emt 0:00:02]} 13. a4 {[%emt 0:00:13]} Rad8 {[%emt 0:01:14]} 14. Ba3 {[%emt 0:00:38]} Rxd1+ {[%emt 0:01:14]} 15. Nxd1 {[%emt 0:00:07]} c5 {[%emt 0:00:21]} 16. Ne3 {[%emt 0:00:08]} Nc8 {[%emt 0:01:49]} 17. Nxg4 {[%emt 0:00:39]} Nxg4 {[%emt 0:00:02]} 18. Rd1 {[%emt 0:00:06]} b6 {[%emt 0:02:34]} 19. Qd2 {[%emt 0:01:02]} Re8 {[%emt 0:01:33]} 20. Bb2 {[%emt 0:01:10]} Nf6 {[%emt 0:00:54]} 21. Qd3 {[%emt 0:00:16]} Qc7 {[%emt 0:01:13]} 22. Bxe5 {[%emt 0:01:19]} Rxe5 {[%emt 0:00:06]} 23. Nxe5 {[%emt 0:00:02]} Qxe5 {[%emt 0:00:09]} 24. Qd8+ {[%emt 0:00:01]} Qe8 {[%emt 0:00:02]} 25. e5 {[%emt 0:00:03]} Bf8 {[%emt 0:02:33]} 26. exf6 {[%emt 0:00:19]} Qe2 {[%emt 0:00:26]} 27. Bf1 {[%emt 0:00:48]} Qe5 {[%emt 0:00:01]} 28. Qxc8 {[%emt 0:00:11]} 1-0

[Event "POR-ch Women Rapid 2019"]
[Site "Portimao"]
[Date "2019.09.07"]
[Round "1.2"]
[White "Leite, Marta Sofia Carvalho"]
[Black "Jorge, Rita Maria Osorio"]
[Result "0-1"]
[ECO "C64"]
[WhiteElo "1722"]
[BlackElo "1957"]
[Annotator "NA"]
[PlyCount "54"]
[EventDate "2019.09.08"]
[EventType "swiss"]
[EventCountry "POR"]
[SourceTitle "playchess.com"]
[Source "ChessBase"]
[SourceQuality "1"]
[TimeControl "900+5"]

1. e4 {[%emt 0:00:00]} e5 {[%emt 0:00:00]} 2. Nf3 {[%emt 0:00:01]} Nc6 {[%emt 0:00:00]} 3. Bb5 {[%emt 0:00:03]} Bc5 {[%emt 0:00:53]} 4. O-O {[%emt 0:00:11]} d6 {[%emt 0:00:06]} 5. d3 {[%emt 0:00:15]} h6 {[%emt 0:00:38]} 6. c3 {[%emt 0:01:49]} a6 {[%emt 0:00:13]} 7. Bc4 {[%emt 0:00:25]} Nf6 {[%emt 0:03:04]} 8. Be3 {[%emt 0:00:38]} O-O {[%emt 0:02:21]} 9. Bxc5 {[%emt 0:01:20]} dxc5 {[%emt 0:00:05]} 10. a4 {[%emt 0:00:34]} Bg4 {[%emt 0:00:47]} 11. Nbd2 {[%emt 0:00:38]} Qe7 {[%emt 0:00:03]} 12. Qc2 {[%emt 0:02:17]} Rfd8 {[%emt 0:00:28]} 13. Rab1 {[%emt 0:03:22]} Be6 {[%emt 0:01:24]} 14. b4 {[%emt 0:00:38]} Bxc4 {[%emt 0:01:01]} 15. dxc4 {[%emt 0:01:02]} cxb4 {[%emt 0:00:24]} 16. cxb4 {[%emt 0:00:03]} Nxb4 {[%emt 0:00:27]} 17. Qc3 {[%emt 0:00:39]} c5 {[%emt 0:00:39]} 18. Nxe5 {[%emt 0:01:10]} Rxd2 {[%emt 0:00:54]} 19. Qxd2 {[%emt 0:00:17]} Qxe5 {[%emt 0:00:02]} 20. f3 {[%emt 0:00:17]} Qe6 {[%emt 0:00:18]} 21. Qc3 {[%emt 0:00:15]} Nd7 {[%emt 0:00:09]} 22. Rfc1 {[%emt 0:00:25]} Ne5 {[%emt 0:00:07]} 23. Qe3 {[%emt 0:00:06]} Qe7 {[%emt 0:00:08]} 24. Qe2 {[%emt 0:00:26]} Nec6 {[%emt 0:00:04]} 25. Rd1 {[%emt 0:00:03]} Nd4 {[%emt 0:00:29]} 26. Qe3 {[%emt 0:00:07]} a5 {[%emt 0:00:15]} 27. Qf4 {[%emt 0:00:05]} Ne2+ {[%emt 0:00:03]} 0-1

[Event "POR-ch Women Rapid 2019"]
[Site "Portimao"]
[Date "2019.09.07"]
[Round "1.3"]
[White "Silva, Mariana Sofia T."]
[Black "Duque, Raquel Dos Santos"]
[Result "1-0"]
[ECO "C25"]
[WhiteElo "1882"]
[BlackElo "1415"]
[Annotator "NA"]
[PlyCount "93"]
[EventDate "2019.09.08"]
[EventType "swiss"]
[EventCountry "POR"]
[SourceTitle "playchess.com"]
[Source "ChessBase"]
[SourceQuality "1"]
[TimeControl "900+5"]

1. e4 {[%emt 0:00:00]} e5 {[%emt 0:00:00]} 2. Nc3 {[%emt 0:00:01]} Nc6 {[%emt 0:00:00]} 3. Bc4 {[%emt 0:00:09]} Bc5 {[%emt 0:00:10]} 4. d3 {[%emt 0:00:32]} h6 {[%emt 0:00:22]} 5. Nge2 {[%emt 0:00:13]} Nge7 {[%emt 0:00:35]} 6. O-O {[%emt 0:00:08]} O-O {[%emt 0:00:02]} 7. Be3 {[%emt 0:00:34]} Bb6 {[%emt 0:00:07]} 8. Na4 {[%emt 0:00:38]} d6 {[%emt 0:00:26]} 9. Nxb6 {[%emt 0:00:04]} axb6 {[%emt 0:00:03]} 10. Nc3 {[%emt 0:00:25]} Be6 {[%emt 0:00:05]} 11. Bxe6 {[%emt 0:00:51]} fxe6 {[%emt 0:00:04]} 12. Qg4 {[%emt 0:00:03]} Rf6 {[%emt 0:00:28]} 13. f4 {[%emt 0:00:27]} Rg6 {[%emt 0:00:21]} 14. Qh3 {[%emt 0:00:23]} Qd7 {[%emt 0:00:57]} 15. Rf2 {[%emt 0:01:29]} Rf8 {[%emt 0:00:38]} 16. Raf1 {[%emt 0:00:10]} Rgf6 {[%emt 0:01:00]} 17. Nd5 {[%emt 0:01:37]} Nxd5 {[%emt 0:00:51]} 18. exd5 {[%emt 0:00:02]} Ne7 {[%emt 0:00:09]} 19. dxe6 {[%emt 0:00:56]} Qxe6 {[%emt 0:00:18]} 20. Qxe6+ {[%emt 0:01:09]} Rxe6 {[%emt 0:00:03]} 21. fxe5 {[%emt 0:01:47]} Rxf2 {[%emt 0:00:17]} 22. Bxf2 {[%emt 0:00:27]} Rxe5 {[%emt 0:00:22]} 23. Re1 {[%emt 0:00:45]} Rxe1+ {[%emt 0:00:35]} 24. Bxe1 {[%emt 0:00:01]} Nd5 {[%emt 0:00:11]} 25. Bd2 {[%emt 0:00:12]} Kf7 {[%emt 0:00:04]} 26. Kf2 {[%emt 0:00:03]} Ke6 {[%emt 0:00:02]} 27. Kf3 {[%emt 0:00:26]} h5 {[%emt 0:00:30]} 28. h3 {[%emt 0:00:19]} Ke5 {[%emt 0:00:51]} 29. c4 {[%emt 0:00:11]} Ne7 {[%emt 0:00:20]} 30. Bc3+ {[%emt 0:00:01]} Ke6 {[%emt 0:00:39]} 31. Bxg7 {[%emt 0:00:12]} Nf5 {[%emt 0:00:05]} 32. Bc3 {[%emt 0:00:03]} d5 {[%emt 0:00:09]} 33. g4 {[%emt 0:00:27]} hxg4+ {[%emt 0:01:13]} 34. hxg4 {[%emt 0:00:01]} Nh4+ {[%emt 0:00:03]} 35. Kg3 {[%emt 0:00:17]} Ng6 {[%emt 0:00:02]} 36. b3 {[%emt 0:00:40]} c5 {[%emt 0:00:13]} 37. d4 {[%emt 0:00:27]} Kd6 {[%emt 0:00:33]} 38. Kf3 {[%emt 0:00:27]} Ke6 {[%emt 0:00:28]} 39. Ke3 {[%emt 0:00:21]} Kd6 {[%emt 0:00:18]} 40. Be1 {[%emt 0:00:01]} Ke6 {[%emt 0:00:39]} 41. Bg3 {[%emt 0:00:04]} dxc4 {[%emt 0:00:52]} 42. bxc4 {[%emt 0:00:04]} cxd4+ {[%emt 0:00:15]} 43. Kxd4 {[%emt 0:00:01]} Ne7 {[%emt 0:00:17]} 44. Bc7 {[%emt 0:00:26]} Nc6+ {[%emt 0:00:24]} 45. Ke4 {[%emt 0:00:03]} Kf6 {[%emt 0:00:08]} 46. Kf4 {[%emt 0:00:15]} Nd4 {[%emt 0:00:08]} 47. Be5+ {[%emt 0:00:07]} 1-0

[Event "POR-ch Women Rapid 2019"]
[Site "Portimao"]
[Date "2019.09.07"]
[Round "1.4"]
[White "Soares, Sara Joana De Moura "]
[Black "Silva, Ana Ines Teixeira Da"]
[Result "0-1"]
[ECO "C54"]
[WhiteElo "1533"]
[BlackElo "1738"]
[Annotator "NA"]
[PlyCount "56"]
[EventDate "2019.09.08"]
[EventType "swiss"]
[EventCountry "POR"]
[SourceTitle "playchess.com"]
[Source "ChessBase"]
[SourceQuality "1"]
[TimeControl "900+5"]

1. e4 {[%emt 0:00:00]} e5 {[%emt 0:00:00]} 2. Nf3 {[%emt 0:00:00]} Nc6 {[%emt 0:00:02]} 3. Bc4 {[%emt 0:00:01]} Bc5 {[%emt 0:00:02]} 4. c3 {[%emt 0:00:01]} Nf6 {[%emt 0:00:02]} 5. d4 {[%emt 0:00:02]} exd4 {[%emt 0:00:08]} 6. e5 {[%emt 0:00:01]} d5 {[%emt 0:00:12]} 7. Bb5 {[%emt 0:00:02]} Ne4 {[%emt 0:00:07]} 8. cxd4 {[%emt 0:00:02]} Bb6 {[%emt 0:00:20]} 9. Nc3 {[%emt 0:00:07]} Bg4 {[%emt 0:01:04]} 10. h3 {[%emt 0:00:27]} Bh5 {[%emt 0:00:04]} 11. Qc2 {[%emt 0:00:01]} Ba5 {[%emt 0:00:45]} 12. Be3 {[%emt 0:00:59]} O-O {[%emt 0:00:50]} 13. Rc1 {[%emt 0:00:32]} Kh8 {[%emt 0:01:08]} 14. a3 {[%emt 0:02:32]} Bg6 {[%emt 0:01:05]} 15. Qb3 {[%emt 0:00:24]} f6 {[%emt 0:00:57]} 16. Bxc6 {[%emt 0:01:45]} bxc6 {[%emt 0:00:04]} 17. Qa4 {[%emt 0:00:01]} Bxc3+ {[%emt 0:03:50]} 18. bxc3 {[%emt 0:00:02]} c5 {[%emt 0:02:41]} 19. O-O {[%emt 0:01:12]} f5 {[%emt 0:00:52]} 20. dxc5 {[%emt 0:01:29]} f4 {[%emt 0:00:05]} 21. Bd4 {[%emt 0:00:01]} Bh5 {[%emt 0:00:23]} 22. Kh2 {[%emt 0:05:08]} Bxf3 {[%emt 0:00:18]} 23. gxf3 {[%emt 0:00:01]} Nd2 {[%emt 0:00:16]} 24. Rfd1 {[%emt 0:00:31]} Nxf3+ {[%emt 0:00:03]} 25. Kg2 {[%emt 0:01:21]} Nh4+ {[%emt 0:00:02]} 26. Kh1 {[%emt 0:00:11]} Qg5 {[%emt 0:00:31]} 27. Rg1 {[%emt 0:00:01]} Qf5 {[%emt 0:00:01]} 28. Qc2 {[%emt 0:00:20]} Qxh3# {[%emt 0:00:07]} 0-1

[Event "POR-ch Women Rapid 2019"]
[Site "Portimao"]
[Date "2019.09.07"]
[Round "1.5"]
[White "Monteiro, Sara Cristina da Sil"]
[Black "Goncalves, Ana Luisa"]
[Result "1-0"]
[ECO "D03"]
[WhiteElo "1728"]
[BlackElo "1250"]
[Annotator "NA"]
[PlyCount "51"]
[EventDate "2019.09.08"]
[EventType "swiss"]
[EventCountry "POR"]
[SourceTitle "playchess.com"]
[Source "ChessBase"]
[SourceQuality "1"]
[TimeControl "900+5"]

1. d4 {[%emt 0:00:00]} d5 {[%emt 0:00:02]} 2. Bg5 {[%emt 0:00:01]} Nf6 3. Nf3 {[%emt 0:00:14]} Bg4 {[%emt 0:00:28]} 4. e3 {[%emt 0:00:19]} Nc6 {[%emt 0:00:09]} 5. c4 {[%emt 0:00:11]} e6 {[%emt 0:01:04]} 6. Nc3 {[%emt 0:00:07]} Be7 {[%emt 0:00:08]} 7. Bd3 {[%emt 0:00:18]} h6 {[%emt 0:00:31]} 8. Bh4 {[%emt 0:00:56]} O-O {[%emt 0:00:25]} 9. O-O {[%emt 0:00:04]} a6 {[%emt 0:01:04]} 10. Rc1 {[%emt 0:00:27]} Nb4 {[%emt 0:00:39]} 11. Be2 {[%emt 0:00:37]} Ne4 {[%emt 0:01:01]} 12. Bxe7 {[%emt 0:01:37]} Qxe7 {[%emt 0:00:12]} 13. a3 {[%emt 0:00:15]} Nxc3 {[%emt 0:00:51]} 14. Rxc3 {[%emt 0:00:18]} Na2 {[%emt 0:01:23]} 15. Rb3 {[%emt 0:03:12]} Bxf3 {[%emt 0:01:34]} 16. gxf3 {[%emt 0:01:26]} c5 {[%emt 0:02:15]} 17. cxd5 {[%emt 0:03:14]} b5 {[%emt 0:00:43]} 18. dxc5 {[%emt 0:00:07]} Qxc5 {[%emt 0:00:30]} 19. dxe6 {[%emt 0:01:17]} Rfd8 {[%emt 0:01:19]} 20. exf7+ {[%emt 0:00:03]} Kxf7 {[%emt 0:00:15]} 21. Qb1 {[%emt 0:00:05]} Nc1 {[%emt 0:00:26]} 22. Qxc1 {[%emt 0:00:09]} Qxc1 {[%emt 0:00:22]} 23. Rxc1 {[%emt 0:00:02]} Ra7 {[%emt 0:00:30]} 24. Rd3 {[%emt 0:00:07]} Re8 {[%emt 0:00:27]} 25. Rdc3 {[%emt 0:00:03]} Ree7 {[%emt 0:00:15]} 26. f4 {[%emt 0:00:02]} 1-0

[Event "POR-ch Women Rapid 2019"]
[Site "Portimao"]
[Date "2019.09.07"]
[Round "2.1"]
[White "Silva, Ana Ines Teixeira Da"]
[Black "Pipiras, Filipa Fortuna"]
[Result "0-1"]
[ECO "C45"]
[WhiteElo "1738"]
[BlackElo "1965"]
[Annotator "NA"]
[PlyCount "254"]
[EventDate "2019.09.08"]
[EventType "swiss"]
[EventCountry "POR"]
[SourceTitle "playchess.com"]
[Source "ChessBase"]
[SourceQuality "1"]
[TimeControl "900+5"]

1. e4 {[%emt 0:00:00]} e5 {[%emt 0:00:29]} 2. Nf3 {[%emt 0:00:01]} Nc6 {[%emt 0:00:03]} 3. d4 {[%emt 0:00:02]} exd4 {[%emt 0:00:03]} 4. Nxd4 {[%emt 0:00:03]} Bc5 {[%emt 0:00:06]} 5. Be3 {[%emt 0:00:03]} Qf6 {[%emt 0:00:08]} 6. c3 {[%emt 0:00:02]} Nge7 {[%emt 0:00:04]} 7. Bc4 {[%emt 0:00:02]} Ne5 {[%emt 0:00:16]} 8. Be2 $11 {[%emt 0:00:02]} O-O {[%emt 0:01:11]} 9. O-O {[%emt 0:00:07]} Qg6 {[%emt 0:00:13]} 10. f3 {[%emt 0:00:51]} d5 {[%emt 0:01:19]} 11. Nd2 {[%emt 0:00:37]} Bb6 {[%emt 0:00:00]} 12. a4 {[%emt 0:00:46]} a5 {[%emt 0:00:26]} 13. Kh1 {[%emt 0:00:42]} dxe4 {[%emt 0:01:40]} 14. Nxe4 {[%emt 0:01:56]} Nd5 {[%emt 0:00:32]} 15. Bf2 {[%emt 0:00:47]} c6 {[%emt 0:02:06]} 16. c4 {[%emt 0:01:14]} Nf4 {[%emt 0:00:13]} 17. Bg3 {[%emt 0:02:01]} Nxe2 {[%emt 0:01:45]} 18. Nxe2 {[%emt 0:00:02]} Nd7 {[%emt 0:03:16]} 19. Bd6 {[%emt 0:00:43]} Rd8 {[%emt 0:00:28]} 20. Qb3 {[%emt 0:01:25]} Re8 {[%emt 0:00:45]} 21. N2g3 {[%emt 0:01:46]} Kh8 {[%emt 0:00:16]} 22. c5 {[%emt 0:00:28]} Bd8 {[%emt 0:00:24]} 23. Rfe1 {[%emt 0:00:33]} h5 {[%emt 0:00:11]} 24. Nf2 {[%emt 0:00:32]} Rxe1+ {[%emt 0:00:11]} 25. Rxe1 {[%emt 0:00:01]} Nf6 {[%emt 0:00:01]} 26. Qd1 {[%emt 0:01:25]} Be6 {[%emt 0:00:09]} 27. Nge4 {[%emt 0:00:13]} Nd5 {[%emt 0:00:04]} 28. Nd3 {[%emt 0:00:09]} b5 {[%emt 0:00:14]} 29. Ne5 {[%emt 0:00:02]} Qf5 {[%emt 0:00:06]} 30. Ng3 {[%emt 0:00:10]} Qh7 {[%emt 0:00:14]} 31. Qd4 {[%emt 0:00:16]} Bf6 {[%emt 0:00:06]} 32. Ne4 {[%emt 0:00:13]} Rc8 {[%emt 0:00:16]} 33. Nxf6 {[%emt 0:00:02]} Nxf6 {[%emt 0:00:02]} 34. Nd3 {[%emt 0:00:13]} h4 {[%emt 0:00:02]} 35. Nf4 {[%emt 0:00:03]} h3 {[%emt 0:00:14]} 36. Nxe6 {[%emt 0:00:10]} hxg2+ {[%emt 0:00:03]} 37. Kxg2 {[%emt 0:00:01]} fxe6 {[%emt 0:00:01]} 38. Rxe6 {[%emt 0:00:09]} Qc2+ {[%emt 0:00:01]} 39. Kf1 {[%emt 0:00:05]} Qb1+ {[%emt 0:00:06]} 40. Re1 {[%emt 0:00:02]} Qf5 {[%emt 0:00:03]} 41. Qh4+ {[%emt 0:00:05]} Kg8 {[%emt 0:00:01]} 42. Qf2 Rd8 {[%emt 0:00:05]} 43. axb5 {[%emt 0:00:09]} cxb5 {[%emt 0:00:02]} 44. Rd1 {[%emt 0:00:11]} b4 {[%emt 0:00:06]} 45. Qe2 {[%emt 0:00:09]} a4 {[%emt 0:00:05]} 46. Qc4+ {[%emt 0:00:02]} Kh8 {[%emt 0:00:02]} 47. Qh4+ {[%emt 0:00:08]} Kg8 {[%emt 0:00:02]} 48. Qc4+ {[%emt 0:00:04]} Kh7 {[%emt 0:00:06]} 49. Qh4+ {[%emt 0:00:05]} Kg6 {[%emt 0:00:10]} 50. Qg3+ {[%emt 0:00:03]} Kf7 {[%emt 0:00:02]} 51. c6 {[%emt 0:00:05]} Qb5+ {[%emt 0:00:02]} 52. Kg2 {[%emt 0:00:02]} Qxc6 {[%emt 0:00:02]} 53. Qe5 {[%emt 0:00:08]} Re8 {[%emt 0:00:05]} 54. Qd4 {[%emt 0:00:04]} Qc2+ {[%emt 0:00:01]} 55. Kg1 {[%emt 0:00:07]} Re2 {[%emt 0:00:16]} 56. Qa7+ {[%emt 0:00:07]} Kg6 {[%emt 0:00:02]} 57. Qd4 {[%emt 0:00:07]} Rg2+ {[%emt 0:00:04]} 58. Kh1 {[%emt 0:00:01]} Qxb2 {[%emt 0:00:33]} 59. Bxb4 {[%emt 0:00:06]} Qxd4 {[%emt 0:00:02]} 60. Rxd4 {[%emt 0:00:02]} Rb2 {[%emt 0:00:02]} 61. Ba3 {[%emt 0:00:03]} Rb1+ {[%emt 0:00:02]} 62. Kg2 {[%emt 0:00:02]} Ra1 {[%emt 0:00:01]} 63. Rxa4 {[%emt 0:00:02]} Nd5 {[%emt 0:00:08]} 64. Rg4+ {[%emt 0:00:14]} Kh7 {[%emt 0:00:03]} 65. Bf8 {[%emt 0:00:03]} Ne3+ {[%emt 0:00:02]} 66. Kg3 {[%emt 0:00:02]} Nxg4 {[%emt 0:00:01]} 67. fxg4 {[%emt 0:00:08]} Kg6 {[%emt 0:00:02]} 68. Bd6 {[%emt 0:00:07]} Rd1 {[%emt 0:00:03]} 69. Bf4 {[%emt 0:00:08]} Rd3+ {[%emt 0:00:02]} 70. Kh4 {[%emt 0:00:06]} Kf6 {[%emt 0:00:02]} 71. Bg5+ {[%emt 0:00:03]} Ke6 {[%emt 0:00:02]} 72. h3 {[%emt 0:00:04]} g6 {[%emt 0:00:12]} 73. Bh6 {[%emt 0:00:05]} Kf6 {[%emt 0:00:03]} 74. Bg5+ {[%emt 0:00:01]} Kg7 {[%emt 0:00:03]} 75. Bf4 {[%emt 0:00:01]} Rd5 {[%emt 0:00:04]} 76. Bg5 {[%emt 0:00:03]} Kf7 {[%emt 0:00:03]} 77. Bf4 {[%emt 0:00:03]} Kf6 {[%emt 0:00:02]} 78. g5+ {[%emt 0:00:23]} Kf5 {[%emt 0:00:02]} 79. Bc1 {[%emt 0:00:03]} Rd3 {[%emt 0:00:03]} 80. Bb2 {[%emt 0:00:04]} Ke4 {[%emt 0:00:04]} 81. Kg4 {[%emt 0:00:03]} Rd2 {[%emt 0:00:02]} 82. Bf6 {[%emt 0:00:02]} Rg2+ {[%emt 0:00:01]} 83. Kh4 {[%emt 0:00:01]} Kf3 {[%emt 0:00:03]} 84. Be7 {[%emt 0:00:03]} Rh2 {[%emt 0:00:03]} 85. Bd6 {[%emt 0:00:02]} Rh1 {[%emt 0:00:01]} 86. Be5 {[%emt 0:00:02]} Kg2 {[%emt 0:00:02]} 87. Kg4 {[%emt 0:00:11]} Rxh3 {[%emt 0:00:01]} 88. Bf6 {[%emt 0:00:02]} Ra3 {[%emt 0:00:02]} 89. Kf4 {[%emt 0:00:02]} Ra5 {[%emt 0:00:02]} 90. Ke4 {[%emt 0:00:02]} Rf5 {[%emt 0:00:02]} 91. Ke3 {[%emt 0:00:03]} Kh3 {[%emt 0:00:02]} 92. Ke4 {[%emt 0:00:02]} Kg4 {[%emt 0:00:01]} 93. Ke3 {[%emt 0:00:02]} Rb5 {[%emt 0:00:08]} 94. Kf2 {[%emt 0:00:04]} Kf5 {[%emt 0:00:04]} 95. Kf3 {[%emt 0:00:03]} Rb3+ {[%emt 0:00:01]} 96. Kg2 {[%emt 0:00:01]} Kf4 {[%emt 0:00:06]} 97. Kf2 {[%emt 0:00:03]} Ra3 {[%emt 0:00:02]} 98. Ke2 {[%emt 0:00:02]} Ra2+ {[%emt 0:00:01]} 99. Kd3 {[%emt 0:00:12]} Rg2 {[%emt 0:00:02]} 100. Kd4 {[%emt 0:00:04]} Rg1 {[%emt 0:00:17]} 101. Kd3 {[%emt 0:00:10]} Kf3 {[%emt 0:00:02]} 102. Kd4 {[%emt 0:00:02]} Rd1+ {[%emt 0:00:03]} 103. Ke5 {[%emt 0:00:02]} Re1+ {[%emt 0:00:03]} 104. Kd4 {[%emt 0:00:04]} Kf4 {[%emt 0:00:07]} 105. Kd3 {[%emt 0:00:08]} Re6 {[%emt 0:00:03]} 106. Kd2 {[%emt 0:00:04]} Rd6+ {[%emt 0:00:04]} 107. Ke2 {[%emt 0:00:03]} Rd5 {[%emt 0:00:02]} 108. Kf2 {[%emt 0:00:02]} Rd2+ {[%emt 0:00:01]} 109. Ke1 {[%emt 0:00:02]} Rg2 {[%emt 0:00:04]} 110. Kf1 {[%emt 0:00:01]} Kf3 {[%emt 0:00:01]} 111. Ke1 {[%emt 0:00:20]} Re2+ {[%emt 0:00:04]} 112. Kf1 {[%emt 0:00:03]} Rg2 {[%emt 0:00:04]} 113. Ke1 {[%emt 0:00:01]} Rg1+ {[%emt 0:00:02]} 114. Kd2 {[%emt 0:00:03]} Kf4 {[%emt 0:00:01]} 115. Ke2 {[%emt 0:00:04]} Rg2+ {[%emt 0:00:01]} 116. Kf1 {[%emt 0:00:01]} Ra2 {[%emt 0:00:02]} 117. Ke1 {[%emt 0:00:05]} Kf3 {[%emt 0:00:03]} 118. Kf1 {[%emt 0:00:08]} Rc2 {[%emt 0:00:03]} 119. Ke1 {[%emt 0:00:02]} Rh2 {[%emt 0:00:18]} 120. Kd1 {[%emt 0:00:16]} Rh1+ {[%emt 0:00:06]} 121. Kd2 {[%emt 0:00:03]} Rg1 {[%emt 0:00:01]} 122. Kd3 {[%emt 0:00:03]} Rd1+ {[%emt 0:00:02]} 123. Kc2 {[%emt 0:00:02]} Rd5 {[%emt 0:00:02]} 124. Kc3 {[%emt 0:00:02]} Kf4 {[%emt 0:00:03]} 125. Kc4 {[%emt 0:00:02]} Rxg5 {[%emt 0:00:02]} 126. Bxg5+ {[%emt 0:00:03]} Kxg5 {[%emt 0:00:00]} 127. Kd4 {[%emt 0:00:01]} Kf4 {[%emt 0:00:01]} 0-1

[Event "POR-ch Women Rapid 2019"]
[Site "Portimao"]
[Date "2019.09.07"]
[Round "2.2"]
[White "Jorge, Rita Maria Osorio"]
[Black "Monteiro, Sara Cristina da Sil"]
[Result "1-0"]
[ECO "B01"]
[WhiteElo "1957"]
[BlackElo "1728"]
[Annotator "NA"]
[PlyCount "85"]
[EventDate "2019.09.08"]
[EventType "swiss"]
[EventCountry "POR"]
[SourceTitle "playchess.com"]
[Source "ChessBase"]
[SourceQuality "1"]
[TimeControl "900+5"]

1. e4 {[%emt 0:00:00]} d5 {[%emt 0:00:00]} 2. exd5 {[%emt 0:00:00]} Qxd5 {[%emt 0:00:01]} 3. Nc3 {[%emt 0:00:04]} Qa5 {[%emt 0:00:02]} 4. d4 {[%emt 0:00:29]} c6 {[%emt 0:01:09]} 5. a3 {[%emt 0:00:26]} Nf6 {[%emt 0:00:06]} 6. Bd3 {[%emt 0:00:26]} Bg4 {[%emt 0:00:34]} 7. Nge2 {[%emt 0:01:04]} Nbd7 {[%emt 0:00:23]} 8. f3 {[%emt 0:01:41]} Bh5 {[%emt 0:00:58]} 9. b4 {[%emt 0:01:57]} Qc7 {[%emt 0:01:39]} 10. O-O {[%emt 0:00:28]} e5 {[%emt 0:00:09]} 11. Re1 {[%emt 0:01:25]} O-O-O {[%emt 0:00:09]} 12. Be3 {[%emt 0:00:26]} Bg6 {[%emt 0:00:19]} 13. b5 {[%emt 0:01:19]} exd4 {[%emt 0:00:42]} 14. Nxd4 {[%emt 0:00:26]} c5 {[%emt 0:00:15]} 15. Nde2 {[%emt 0:01:34]} c4 {[%emt 0:00:50]} 16. Bxg6 {[%emt 0:00:19]} hxg6 {[%emt 0:00:03]} 17. Bf4 {[%emt 0:00:07]} Ne5 {[%emt 0:03:12]} 18. Qc1 {[%emt 0:00:34]} Bc5+ {[%emt 0:00:45]} 19. Kh1 {[%emt 0:00:13]} Nh5 {[%emt 0:03:58]} 20. Ng3 {[%emt 0:01:23]} Nxf4 {[%emt 0:00:28]} 21. Qxf4 {[%emt 0:00:19]} Rxh2+ {[%emt 0:00:02]} 22. Kxh2 {[%emt 0:00:11]} Rh8+ {[%emt 0:00:11]} 23. Nh5 {[%emt 0:00:05]} Rxh5+ {[%emt 0:00:21]} 24. Kg3 {[%emt 0:00:05]} Bd6 {[%emt 0:00:14]} 25. Ne4 {[%emt 0:00:39]} Be7 {[%emt 0:00:24]} 26. Rh1 {[%emt 0:00:30]} Rf5 {[%emt 0:00:08]} 27. Rh8+ {[%emt 0:00:05]} Bd8 {[%emt 0:00:01]} 28. Rd1 {[%emt 0:00:33]} Rxf4 {[%emt 0:00:08]} 29. Rdxd8+ {[%emt 0:00:04]} Qxd8 {[%emt 0:00:03]} 30. Rxd8+ {[%emt 0:00:02]} Kxd8 {[%emt 0:00:01]} 31. Kxf4 {[%emt 0:00:02]} f6 {[%emt 0:00:10]} 32. Nd6 {[%emt 0:00:05]} b6 {[%emt 0:00:02]} 33. Ke4 {[%emt 0:00:06]} Kc7 {[%emt 0:00:03]} 34. Kd5 {[%emt 0:00:22]} Kd7 {[%emt 0:00:08]} 35. Nxc4 {[%emt 0:00:09]} Nxc4 {[%emt 0:00:01]} 36. Kxc4 {[%emt 0:00:02]} Kd6 {[%emt 0:00:01]} 37. Kd4 {[%emt 0:00:05]} f5 {[%emt 0:00:05]} 38. f4 {[%emt 0:00:04]} Ke6 {[%emt 0:00:05]} 39. c4 {[%emt 0:00:07]} Kd6 {[%emt 0:00:07]} 40. a4 {[%emt 0:00:07]} g5 {[%emt 0:00:12]} 41. fxg5 {[%emt 0:00:09]} g6 {[%emt 0:00:02]} 42. g3 {[%emt 0:00:03]} Ke6 43. c5 {Kd5+ Ke4+} 1-0

[Event "POR-ch Women Rapid 2019"]
[Site "Portimao"]
[Date "2019.09.07"]
[Round "2.4"]
[White "Avelino, Camila Biscaya"]
[Black "Soares, Sara Joana De Moura "]
[Result "0-1"]
[ECO "C99"]
[WhiteElo "1722"]
[BlackElo "1533"]
[Annotator "NA"]
[PlyCount "66"]
[EventDate "2019.09.08"]
[EventType "swiss"]
[EventCountry "POR"]
[SourceTitle "playchess.com"]
[Source "ChessBase"]
[SourceQuality "1"]
[TimeControl "900+5"]

1. e4 {[%emt 0:00:00]} e5 {[%emt 0:00:00]} 2. Nf3 {[%emt 0:00:00]} Nc6 {[%emt 0:00:00]} 3. Bb5 {[%emt 0:00:00]} a6 {[%emt 0:00:00]} 4. Ba4 {[%emt 0:00:00]} Nf6 {[%emt 0:00:01]} 5. O-O {[%emt 0:00:05]} Be7 {[%emt 0:00:02]} 6. Re1 {[%emt 0:00:02]} b5 {[%emt 0:00:01]} 7. Bb3 {[%emt 0:00:01]} O-O {[%emt 0:00:08]} 8. h3 {[%emt 0:00:01]} d6 {[%emt 0:00:13]} 9. c3 {[%emt 0:00:02]} Na5 {[%emt 0:00:01]} 10. Bc2 {[%emt 0:00:01]} c5 {[%emt 0:00:01]} 11. d4 {[%emt 0:00:01]} cxd4 {[%emt 0:00:20]} 12. cxd4 {[%emt 0:00:02]} Qc7 {[%emt 0:00:01]} 13. Nbd2 {[%emt 0:00:07]} Bd7 {[%emt 0:00:09]} 14. Nb3 {[%emt 0:01:04]} Nc6 {[%emt 0:00:14]} 15. Be3 {[%emt 0:02:19]} Nb4 {[%emt 0:00:18]} 16. Bb1 {[%emt 0:00:08]} Rac8 {[%emt 0:00:01]} 17. a3 {[%emt 0:00:29]} Nc2 {[%emt 0:00:54]} 18. Bxc2 {[%emt 0:00:02]} Qxc2 {[%emt 0:00:01]} 19. dxe5 {[%emt 0:00:01]} dxe5 {[%emt 0:00:50]} 20. Nxe5 {[%emt 0:01:11]} Be6 {[%emt 0:00:03]} 21. Nd4 {[%emt 0:05:21]} Qxb2 {[%emt 0:02:58]} 22. Nec6 {[%emt 0:03:51]} Bxa3 {[%emt 0:01:24]} 23. Re2 {[%emt 0:01:33]} Bb3 {[%emt 0:02:41]} 24. Qxb3 {[%emt 0:00:22]} Qxa1+ {[%emt 0:00:32]} 25. Kh2 {[%emt 0:00:02]} Nxe4 {[%emt 0:00:44]} 26. Ra2 {[%emt 0:00:16]} Bd6+ {[%emt 0:00:35]} 27. g3 {[%emt 0:00:01]} Qf1 {[%emt 0:00:13]} 28. Qd5 {[%emt 0:00:08]} Qc4 {[%emt 0:00:37]} 29. Qxc4 {[%emt 0:00:08]} bxc4 {[%emt 0:00:02]} 30. Rxa6 Nc5 {[%emt 0:00:24]} 31. Ra2 {[%emt 0:00:09]} Ne6 {[%emt 0:00:03]} 32. Rd2 {[%emt 0:00:02]} Nxd4 {[%emt 0:00:03]} 33. Rxd4 {[%emt 0:00:02]} Rxc6 {[%emt 0:00:03]} 0-1